[Event "Kwalificatie NJK A Groningen"]
[Site "Hoogkerk, Netherlands"]
[Date "2023.02.18"]
[Round "4.10"]
[White "Visser, Berend"]
[Black "Smid, Jelle"]
[Result "0-1"]
[TimeControl "55 min. + 10 sec./zet"]
[WhiteElo "1525"]
[BlackElo "1920"]

1. d4 {[%clk 00:55:18]} {[%emt 00:00:02]} Nf6 {[%clk 00:55:02]} {[%emt
00:00:18]} 2. g3 {[%clk 00:55:24]} {[%emt 00:00:04]} e6 {[%clk 00:54:36]}
{[%emt 00:00:37]} 3. Bg2 {[%clk 00:55:29]} {[%emt 00:00:04]} c5 {[%clk
00:54:24]} {[%emt 00:00:22]} 4. Nf3 {[%clk 00:53:41]} {[%emt 00:01:58]} cxd4
{[%clk 00:54:11]} {[%emt 00:00:23]} 5. Nxd4 {[%clk 00:53:45]} {[%emt 00:00:06]}
Nc6 {[%clk 00:54:14]} {[%emt 00:00:07]} 6. Nxc6 {[%clk 00:50:58]} {[%emt
00:02:57]} bxc6 {[%clk 00:54:03]} {[%emt 00:00:21]} 7. O-O {[%clk 00:50:49]}
{[%emt 00:00:19]} d5 {[%clk 00:54:04]} {[%emt 00:00:09]} 8. c4 {[%clk
00:50:46]} {[%emt 00:00:13]} Be7 {[%clk 00:52:59]} {[%emt 00:01:15]} 9. Nc3
{[%clk 00:49:34]} {[%emt 00:01:22]} O-O {[%clk 00:52:57]} {[%emt 00:00:11]} 10.
Bf4 {[%clk 00:47:02]} {[%emt 00:02:42]} Nd7 {[%clk 00:47:52]} {[%emt 00:05:16]}
11. cxd5 {[%clk 00:43:54]} {[%emt 00:03:18]} cxd5 {[%emt 00:06:38]} 12. Rc1
{[%clk 00:37:48]} Bb7 {[%clk 00:43:43]} {[%emt 00:04:06]} 13. Nb5 {[%clk
00:35:46]} {[%emt 00:02:12]} e5 {[%clk 00:43:11]} {[%emt 00:00:42]} 14. Be3
{[%clk 00:34:32]} {[%emt 00:01:25]} Nb6 {[%clk 00:41:07]} {[%emt 00:02:13]} 15.
Nc7 {[%clk 00:32:27]} {[%emt 00:02:16]} Rc8 {[%clk 00:39:58]} {[%emt 00:01:18]}
16. Bxb6 {[%clk 00:32:11]} {[%emt 00:00:27]} axb6 {[%clk 00:40:00]} {[%emt
00:00:09]} 17. Nxd5 {[%clk 00:32:11]} {[%emt 00:00:09]} Bc5 {[%clk 00:38:21]}
{[%emt 00:01:49]} 18. Qb3 {[%clk 00:25:55]} {[%emt 00:06:26]} Ba6 {[%clk
00:36:34]} {[%emt 00:01:57]} 19. Nc3 {[%clk 00:24:41]} {[%emt 00:01:24]} Qg5
{[%clk 00:32:26]} {[%emt 00:04:18]} 20. Ne4 {[%clk 00:22:43]} {[%emt 00:02:08]}
Qh6 {[%clk 00:29:53]} {[%emt 00:02:42]} 21. Nxc5 {[%clk 00:21:23]} {[%emt
00:01:31]} bxc5 {[%clk 00:28:43]} {[%emt 00:01:20]} 22. Rfe1 {[%clk 00:19:26]}
{[%emt 00:02:07]} Bxe2 {[%clk 00:28:24]} {[%emt 00:00:29]} 23. Qd5 {[%clk
00:18:00]} {[%emt 00:01:36]} c4 {[%clk 00:24:21]} {[%emt 00:04:13]} 24. Qxe5
{[%clk 00:17:18]} {[%emt 00:00:51]} Rfe8 {[%clk 00:23:46]} {[%emt 00:00:46]} 25.
Qc3 {[%clk 00:16:18]} {[%emt 00:01:10]} Rcd8 {[%clk 00:22:28]} {[%emt
00:01:28]} 26. Bf1 {[%clk 00:15:12]} {[%emt 00:01:16]} Bd3 {[%clk 00:22:02]}
{[%emt 00:00:35]} 27. Bxd3 {[%clk 00:13:43]} {[%emt 00:01:40]} cxd3 {[%clk
00:22:06]} {[%emt 00:00:06]} 28. Rxe8+ {[%clk 00:13:34]} {[%emt 00:00:20]} Rxe8
{[%clk 00:22:11]} {[%emt 00:00:04]} 29. Rd1 {[%clk 00:13:23]} {[%emt 00:00:21]}
Qa6 {[%clk 00:22:00]} {[%emt 00:00:20]} 30. a3 {[%clk 00:11:32]} {[%emt
00:02:02]} Rd8 {[%clk 00:22:03]} {[%emt 00:00:06]} 31. b4 {[%clk 00:10:40]}
{[%emt 00:01:03]} h5 {[%clk 00:21:53]} {[%emt 00:00:19]} 32. Qb3 {[%clk
00:10:12]} {[%emt 00:00:39]} d2 {[%clk 00:21:38]} {[%emt 00:00:24]} 33. b5
{[%clk 00:09:51]} {[%emt 00:00:32]} Qb7 {[%clk 00:20:07]} {[%emt 00:01:42]} 34.
Qb4 {[%clk 00:08:54]} {[%emt 00:01:07]} h4 {[%clk 00:18:30]} {[%emt 00:01:46]}
35. Rxd2 {[%clk 00:08:01]} {[%emt 00:01:04]} Rxd2 {[%clk 00:18:33]} {[%emt
00:00:07]} 36. Qxd2 {[%clk 00:08:08]} {[%emt 00:00:02]} Qxb5 {[%clk 00:18:10]}
{[%emt 00:00:33]} 37. Qd8+ {[%clk 00:08:07]} {[%emt 00:00:11]} Kh7 {[%clk
00:18:12]} {[%emt 00:00:08]} 38. Qxh4+ {[%clk 00:08:15]} {[%emt 00:00:01]} Kg8
{[%clk 00:18:08]} {[%emt 00:00:15]} 39. Qb4 {[%clk 00:08:11]} {[%emt 00:00:14]}
Qd7 {[%clk 00:18:02]} {[%emt 00:00:15]} 40. a4 {[%clk 00:07:33]} {[%emt
00:00:49]} Qd1+ {[%clk 00:18:01]} {[%emt 00:00:10]} 41. Kg2 {[%clk 00:07:39]}
{[%emt 00:00:05]} Qd5+ {[%clk 00:18:05]} {[%emt 00:00:06]} 42. f3 {[%clk
00:07:11]} {[%emt 00:00:38]} Qa2+ {[%clk 00:18:06]} {[%emt 00:00:08]} 43. Kh3
{[%clk 00:07:11]} {[%emt 00:00:10]} Qe6+ {[%clk 00:18:00]} {[%emt 00:00:17]} 44.
g4 {[%clk 00:07:04]} {[%emt 00:00:18]} Qc6 {[%clk 00:17:20]} {[%emt 00:00:50]}
45. Qe4 {[%clk 00:06:53]} {[%emt 00:00:20]} Qh6+ {[%clk 00:17:17]} {[%emt
00:00:13]} 46. Kg3 {[%clk 00:06:53]} {[%emt 00:00:10]} Qd6+ {[%clk 00:17:21]}
{[%emt 00:00:06]} 47. Qf4 {[%clk 00:06:41]} {[%emt 00:00:23]} Qd1 {[%clk
00:17:14]} {[%emt 00:00:16]} 48. Kh4 {[%clk 00:05:04]} {[%emt 00:01:47]} Qe1+
{[%clk 00:15:40]} {[%emt 00:01:44]} 49. Qg3 {[%clk 00:05:13]} {[%emt 00:00:01]}
Qa1 {[%clk 00:14:23]} {[%emt 00:01:26]} 50. Qf4 {[%clk 00:04:54]} {[%emt
00:00:30]} Qe1+ {[%clk 00:14:18]} {[%emt 00:00:15]} 51. Kg5 {[%clk 00:03:53]}
{[%emt 00:01:11]} Qe7+ {[%clk 00:13:07]} {[%emt 00:01:20]} 52. Kh5 {[%clk
00:03:41]} {[%emt 00:00:22]} g6+ {[%clk 00:13:04]} {[%emt 00:00:12]} 0-1

[Event "Kwalificatie NJK A Groningen"]
[Site "Hoogkerk, Netherlands"]
[Date "2023.02.18"]
[Round "4.11"]
[White "Pijls, Coun"]
[Black "Jovanovic, Luka"]
[Result "0-1"]
[TimeControl "55 min. + 10 sec./zet"]
[WhiteElo "1651"]
[BlackElo "1593"]

1. d4 {[%clk 00:55:10]} {[%emt 00:00:09]} d5 {[%clk 00:54:33]} {[%emt
00:00:48]} 2. Nf3 {[%emt 00:00:08]} Nf6 {[%emt 00:00:10]} 3. c4 {[%clk
00:55:16]} {[%emt 00:00:06]} e6 {[%clk 00:54:20]} {[%emt 00:00:23]} 4. g3
{[%clk 00:55:18]} {[%emt 00:00:08]} dxc4 {[%clk 00:54:23]} {[%emt 00:00:07]} 5.
Bg2 {[%clk 00:55:19]} {[%emt 00:00:09]} Bd7 {[%clk 00:54:27]} {[%emt 00:00:06]}
6. Ne5 {[%clk 00:54:33]} {[%emt 00:00:55]} Bc6 {[%clk 00:54:31]} {[%emt
00:00:06]} 7. Nxc6 {[%clk 00:54:08]} {[%emt 00:00:35]} Nxc6 {[%clk 00:54:30]}
{[%emt 00:00:11]} 8. Bxc6+ {[%clk 00:53:45]} {[%emt 00:00:33]} bxc6 {[%clk
00:54:36]} {[%emt 00:00:04]} 9. Qa4 {[%clk 00:53:09]} {[%emt 00:00:46]} Qd5
{[%clk 00:54:42]} {[%emt 00:00:04]} 10. O-O {[%clk 00:51:42]} {[%emt 00:01:36]}
Qb5 {[%clk 00:54:11]} {[%emt 00:00:40]} 11. Qc2 {[%clk 00:50:10]} {[%emt
00:01:43]} Be7 {[%clk 00:52:15]} {[%emt 00:02:07]} 12. Nc3 {[%clk 00:47:27]}
{[%emt 00:02:53]} Qb6 {[%clk 00:51:49]} {[%emt 00:00:35]} 13. Rd1 {[%clk
00:46:07]} {[%emt 00:01:29]} O-O {[%clk 00:51:16]} {[%emt 00:00:43]} 14. e4
{[%clk 00:45:59]} {[%emt 00:00:19]} Rfd8 {[%clk 00:50:41]} {[%emt 00:00:44]} 15.
Be3 {[%clk 00:44:44]} {[%emt 00:01:24]} Ng4 {[%clk 00:48:48]} {[%emt 00:02:03]}
16. Na4 {[%clk 00:43:34]} {[%emt 00:01:20]} Nxe3 {[%clk 00:48:29]} {[%emt
00:00:30]} 17. fxe3 {[%clk 00:43:10]} {[%emt 00:00:34]} Qb5 {[%clk 00:47:42]}
{[%emt 00:00:56]} 18. Rac1 {[%clk 00:42:51]} {[%emt 00:00:30]} Bg5 {[%clk
00:45:32]} {[%emt 00:02:19]} 19. Re1 {[%emt 00:11:26]} e5 {[%emt 00:00:26]} 20.
Rcd1 {[%clk 00:31:15]} {[%emt 00:00:32]} Bxe3+ {[%clk 00:43:20]} {[%emt
00:02:06]} 21. Rxe3 {[%clk 00:28:59]} {[%emt 00:02:26]} exd4 {[%clk 00:43:17]}
{[%emt 00:00:13]} 22. Rf3 {[%emt 00:00:09]} d3 {[%emt 00:00:32]} 23. Qf2 {[%clk
00:28:54]} {[%emt 00:00:16]} Qxa4 {[%clk 00:42:47]} {[%emt 00:00:18]} 24. Rf1
{[%emt 00:01:29]} Qc2 {[%emt 00:01:37]} 25. Qxc2 {[%clk 00:25:23]} {[%emt
00:02:25]} dxc2 {[%clk 00:39:54]} {[%emt 00:01:35]} 26. R3f2 {[%clk 00:25:26]}
{[%emt 00:00:07]} Rd4 {[%clk 00:38:21]} {[%emt 00:01:42]} 27. Rxc2 {[%clk
00:24:15]} {[%emt 00:01:22]} Rxe4 {[%clk 00:38:24]} {[%emt 00:00:07]} 28. Rfc1
{[%clk 00:24:14]} {[%emt 00:00:11]} Rb8 {[%clk 00:38:25]} {[%emt 00:00:08]} 29.
b3 {[%clk 00:21:15]} {[%emt 00:03:10]} cxb3 {[%clk 00:38:01]} {[%emt 00:00:33]}
30. axb3 {[%clk 00:21:06]} {[%emt 00:00:20]} Rxb3 {[%clk 00:37:56]} {[%emt
00:00:16]} 31. Rxc6 {[%clk 00:21:10]} {[%emt 00:00:06]} g6 {[%clk 00:37:05]}
{[%emt 00:01:00]} 32. Ra6 {[%clk 00:19:09]} {[%emt 00:02:11]} Rb2 {[%emt
00:00:49]} 33. Rxa7 {[%emt 00:02:15]} Ree2 {[%clk 00:36:21]} {[%emt 00:00:15]}
34. h4 {[%clk 00:16:29]} {[%emt 00:00:46]} Rg2+ {[%clk 00:35:41]} {[%emt
00:00:50]} 35. Kf1 {[%emt 00:00:38]} Rbc2 {[%emt 00:01:22]} 36. Rd1 {[%clk
00:14:16]} {[%emt 00:01:36]} 0-1

[Event "Kwalificatie NJK A Groningen"]
[Site "Hoogkerk, Netherlands"]
[Date "2023.02.19"]
[Round "5.1"]
[White "Van Kuijk, Vadim"]
[Black "Moskalets, Sofia"]
[Result "0-1"]
[TimeControl "55 min. + 10 sec./zet"]
[WhiteElo "2023"]
[BlackElo "1675"]

1. e4 {[%clk 00:46:47]} {[%emt 00:08:32]} c6 {[%clk 00:55:09]} {[%emt
00:00:12]} 2. d4 {[%clk 00:46:40]} {[%emt 00:00:16]} d5 {[%clk 00:55:12]}
{[%emt 00:00:07]} 3. e5 {[%clk 00:43:05]} {[%emt 00:03:46]} Bf5 {[%clk
00:55:09]} {[%emt 00:00:13]} 4. h4 {[%clk 00:43:07]} {[%emt 00:00:07]} h5
{[%clk 00:55:05]} {[%emt 00:00:14]} 5. Bg5 {[%clk 00:42:36]} {[%emt 00:00:41]}
Qb6 {[%clk 00:51:13]} {[%emt 00:04:03]} 6. Bd3 {[%clk 00:42:39]} {[%emt
00:00:07]} Bxd3 {[%clk 00:46:16]} {[%emt 00:05:07]} 7. Qxd3 {[%clk 00:42:42]}
{[%emt 00:00:07]} e6 {[%clk 00:44:53]} {[%emt 00:01:33]} 8. Nd2 {[%clk
00:42:20]} {[%emt 00:00:32]} Ne7 {[%clk 00:41:43]} {[%emt 00:03:19]} 9. Ne2
{[%clk 00:34:51]} {[%emt 00:07:38]} Nf5 {[%clk 00:35:19]} {[%emt 00:06:35]} 10.
O-O {[%clk 00:25:48]} {[%emt 00:09:12]} Be7 {[%clk 00:27:09]} {[%emt 00:08:20]}
11. Bxe7 {[%clk 00:25:23]} {[%emt 00:00:36]} Nxe7 {[%clk 00:25:44]} {[%emt
00:01:36]} 12. c4 {[%clk 00:16:15]} {[%emt 00:09:18]} Nf5 {[%clk 00:16:26]}
{[%emt 00:09:28]} 13. g3 {[%clk 00:13:07]} {[%emt 00:03:18]} O-O {[%clk
00:14:55]} {[%emt 00:01:40]} 14. Rfb1 {[%clk 00:10:02]} {[%emt 00:03:16]} Nd7
{[%clk 00:10:58]} {[%emt 00:04:07]} 15. b4 {[%clk 00:08:56]} {[%emt 00:01:15]}
dxc4 {[%clk 00:08:22]} {[%emt 00:02:46]} 16. Nxc4 {[%clk 00:09:05]} {[%emt
00:00:02]} Qd8 {[%clk 00:07:34]} {[%emt 00:00:57]} 17. a4 {[%clk 00:07:29]}
{[%emt 00:01:47]} b5 {[%clk 00:06:41]} {[%emt 00:01:02]} 18. Na5 {[%clk
00:05:22]} {[%emt 00:02:17]} Nxe5 {[%clk 00:04:51]} {[%emt 00:02:00]} 19. Qb3
{[%clk 00:01:13]} {[%emt 00:04:19]} Nxd4 {[%clk 00:04:09]} {[%emt 00:00:53]} 20.
Nxd4 {[%clk 00:01:22]} Qxd4 {[%clk 00:04:17]} {[%emt 00:00:02]} 21. Rd1 {[%clk
00:00:42]} {[%emt 00:00:50]} Qe4 {[%clk 00:04:04]} {[%emt 00:00:23]} 22. f4
{[%clk 00:00:27]} {[%emt 00:00:25]} Ng4 {[%clk 00:03:06]} {[%emt 00:01:08]} 23.
Qc3 {[%clk 00:00:19]} {[%emt 00:00:19]} Ne3 {[%clk 00:02:12]} {[%emt 00:01:03]}
24. Rd2 {[%clk 00:00:24]} {[%emt 00:00:05]} Qf3 {[%clk 00:02:08]} {[%emt
00:00:14]} 25. Raa2 {[%clk 00:00:14]} {[%emt 00:00:21]} f6 {[%clk 00:01:37]}
{[%emt 00:00:40]} 26. Rf2 {[%clk 00:00:13]} {[%emt 00:00:11]} Qxg3+ {[%clk
00:01:21]} {[%emt 00:00:27]} 27. Kh1 {[%clk 00:00:14]} {[%emt 00:00:08]} Rad8
{[%clk 00:01:05]} {[%emt 00:00:26]} 28. Rad2 {[%clk 00:00:20]} {[%emt
00:00:04]} Qxh4+ {[%clk 00:00:52]} {[%emt 00:00:23]} 29. Kg1 {[%clk 00:00:27]}
{[%emt 00:00:03]} Ng4 {[%clk 00:00:50]} {[%emt 00:00:12]} 30. Nxc6 {[%clk
00:00:16]} {[%emt 00:00:21]} Nxf2 {[%clk 00:00:35]} {[%emt 00:00:25]} 31. Rxd8
{[%clk 00:00:15]} {[%emt 00:00:11]} Rxd8 {[%clk 00:00:39]} {[%emt 00:00:06]} 32.
Nxd8 {[%clk 00:00:20]} {[%emt 00:00:05]} Nh3+ {[%clk 00:00:43]} {[%emt
00:00:06]} 33. Kf1 {[%clk 00:00:16]} {[%emt 00:00:14]} Qf2# {[%clk 00:00:50]}
{[%emt 00:00:03]} 0-1

[Event "Kwalificatie NJK A Groningen"]
[Site "Hoogkerk, Netherlands"]
[Date "2023.02.19"]
[Round "5.2"]
[White "Knol, DaniÃ«l"]
[Black "Wierenga, JaÃ«l"]
[Result "0-1"]
[TimeControl "55 min. + 10 sec./zet"]
[WhiteElo "1807"]
[BlackElo "1879"]

1. e4 {[%clk 00:55:19]} c5 {[%clk 00:54:58]} {[%emt 00:00:22]} 2. c3 {[%clk
00:55:24]} {[%emt 00:00:04]} d5 {[%clk 00:55:00]} {[%emt 00:00:08]} 3. exd5
{[%clk 00:55:06]} {[%emt 00:00:29]} Qxd5 {[%clk 00:55:08]} 4. Nf3 {[%clk
00:54:43]} {[%emt 00:00:34]} Nc6 {[%clk 00:55:16]} {[%emt 00:00:02]} 5. d4
{[%clk 00:53:15]} {[%emt 00:01:37]} Bf5 {[%clk 00:50:52]} {[%emt 00:04:34]} 6.
Na3 {[%clk 00:52:46]} {[%emt 00:00:39]} e6 {[%emt 00:02:03]} 7. Nb5 {[%clk
00:51:16]} {[%emt 00:01:38]} O-O-O {[%clk 00:47:34]} {[%emt 00:01:37]} 8. Be3
{[%clk 00:46:55]} {[%emt 00:04:31]} Nf6 {[%clk 00:41:01]} {[%emt 00:06:43]} 9.
Be2 {[%clk 00:45:54]} {[%emt 00:01:12]} Qd7 {[%clk 00:31:19]} {[%emt 00:09:51]}
10. Qa4 {[%clk 00:41:57]} {[%emt 00:04:08]} a6 {[%clk 00:27:17]} {[%emt
00:04:12]} 11. Na3 {[%clk 00:42:04]} {[%emt 00:00:03]} cxd4 {[%clk 00:25:11]}
{[%emt 00:02:16]} 12. cxd4 {[%clk 00:22:39]} {[%emt 00:19:35]} Bb4+ {[%clk
00:21:26]} {[%emt 00:03:54]} 13. Kf1 {[%clk 00:22:48]} {[%emt 00:00:02]} Nd5
{[%clk 00:18:53]} {[%emt 00:02:42]} 14. Rc1 {[%clk 00:21:49]} {[%emt 00:01:10]}
Nb6 {[%clk 00:16:34]} {[%emt 00:02:29]} 15. Qxb4 {[%clk 00:21:44]} {[%emt
00:00:15]} Nd5 {[%clk 00:15:41]} {[%emt 00:01:03]} 16. Qc5 {[%clk 00:21:11]}
{[%emt 00:00:43]} Nxe3+ {[%clk 00:13:50]} {[%emt 00:02:01]} 17. fxe3 {[%clk
00:21:20]} {[%emt 00:00:02]} Qc7 {[%clk 00:12:04]} {[%emt 00:01:56]} 18. Nc4
{[%clk 00:19:47]} {[%emt 00:01:42]} Kb8 {[%clk 00:11:53]} {[%emt 00:00:20]} 19.
Nce5 {[%clk 00:19:16]} {[%emt 00:00:42]} Rd6 {[%clk 00:11:38]} {[%emt
00:00:24]} 20. Kf2 {[%clk 00:15:01]} {[%emt 00:04:26]} f6 {[%clk 00:11:24]}
{[%emt 00:00:23]} 21. Nd3 {[%clk 00:11:41]} {[%emt 00:03:30]} Rd5 {[%clk
00:10:44]} {[%emt 00:00:51]} 22. Qc3 {[%clk 00:10:49]} {[%emt 00:01:02]} g5
{[%clk 00:07:59]} {[%emt 00:02:54]} 23. Nb4 {[%clk 00:10:33]} {[%emt 00:00:26]}
Rd6 {[%clk 00:07:37]} {[%emt 00:00:33]} 24. Qb3 {[%clk 00:06:32]} {[%emt
00:04:11]} Ka8 {[%clk 00:06:55]} {[%emt 00:00:52]} 25. Qa4 {[%clk 00:06:12]}
{[%emt 00:00:30]} g4 {[%clk 00:04:56]} {[%emt 00:02:09]} 26. Nd2 {[%clk
00:06:13]} {[%emt 00:00:09]} Rxd4 {[%clk 00:01:06]} {[%emt 00:04:00]} 27. exd4
{[%clk 00:03:18]} {[%emt 00:03:04]} Qf4+ {[%clk 00:01:15]} 28. Ke1 {[%clk
00:03:28]} {[%emt 00:00:01]} Nxd4 {[%clk 00:00:57]} {[%emt 00:00:28]} 29. Bxa6
{[%clk 00:00:53]} {[%emt 00:02:45]} Qe3+ {[%clk 00:00:57]} {[%emt 00:00:10]} 30.
Be2+ {[%clk 00:01:02]} {[%emt 00:00:01]} Kb8 {[%clk 00:01:02]} {[%emt
00:00:05]} 31. Qd1 {[%clk 00:00:22]} {[%emt 00:00:49]} g3 {[%clk 00:00:54]}
{[%emt 00:00:18]} 32. hxg3 {[%clk 00:00:13]} {[%emt 00:00:19]} Rg8 {[%clk
00:00:33]} {[%emt 00:00:32]} 33. Rc3 {[%clk 00:00:15]} {[%emt 00:00:08]} Qe5
{[%clk 00:00:27]} {[%emt 00:00:16]} 34. Nd3 {[%clk 00:00:00]} {[%emt 00:00:15]}
{time} 0-1

[Event "Kwalificatie NJK A Groningen"]
[Site "Hoogkerk, Netherlands"]
[Date "2023.02.19"]
[Round "5.3"]
[White "Slagboom, Leandro"]
[Black "Nitrauw, Peter"]
[Result "1-0"]
[TimeControl "55 min. + 10 sec./zet"]
[WhiteElo "2201"]
[BlackElo "1763"]

1. e4 {[%clk 00:55:17]} {[%emt 00:00:02]} c5 {[%clk 00:55:14]} {[%emt
00:00:07]} 2. Nf3 {[%clk 00:55:22]} {[%emt 00:00:05]} Nc6 {[%clk 00:55:19]}
{[%emt 00:00:06]} 3. d4 {[%clk 00:55:27]} {[%emt 00:00:05]} cxd4 {[%clk
00:55:16]} {[%emt 00:00:12]} 4. Nxd4 {[%clk 00:55:30]} {[%emt 00:00:07]} e5
{[%clk 00:55:20]} {[%emt 00:00:07]} 5. Nb5 {[%clk 00:55:32]} {[%emt 00:00:07]}
a6 {[%clk 00:55:18]} {[%emt 00:00:12]} 6. Nd6+ {[%clk 00:55:36]} {[%emt
00:00:06]} Bxd6 {[%clk 00:55:21]} {[%emt 00:00:06]} 7. Qxd6 {[%clk 00:55:42]}
{[%emt 00:00:05]} Qf6 {[%clk 00:55:19]} {[%emt 00:00:12]} 8. Qd1 {[%clk
00:55:19]} {[%emt 00:00:32]} Qg6 {[%clk 00:54:59]} {[%emt 00:00:31]} 9. Nc3
{[%clk 00:55:24]} {[%emt 00:00:06]} d5 {[%clk 00:54:09]} {[%emt 00:01:00]} 10.
Nxd5 {[%clk 00:54:57]} {[%emt 00:00:36]} Qxe4+ {[%clk 00:54:04]} {[%emt
00:00:15]} 11. Be3 {[%clk 00:54:50]} {[%emt 00:00:17]} Nd4 {[%clk 00:53:09]}
{[%emt 00:01:06]} 12. Nc7+ {[%clk 00:54:47]} {[%emt 00:00:12]} Ke7 {[%clk
00:53:10]} {[%emt 00:00:08]} 13. Be2 {[%clk 00:53:39]} {[%emt 00:01:18]} Nxc2+
{[%clk 00:45:29]} {[%emt 00:07:52]} 14. Kf1 {[%clk 00:53:43]} {[%emt 00:00:06]}
Nxe3+ {[%clk 00:39:58]} {[%emt 00:05:41]} 15. fxe3 {[%clk 00:53:46]} {[%emt
00:00:07]} Rb8 {[%clk 00:32:20]} {[%emt 00:07:49]} 16. Qb3 {[%clk 00:46:02]}
{[%emt 00:07:53]} b5 {[%clk 00:24:20]} {[%emt 00:08:11]} 17. Qc3 {[%clk
00:42:18]} {[%emt 00:03:53]} Bd7 {[%clk 00:18:38]} {[%emt 00:05:52]} 18. Qc5+
{[%clk 00:37:30]} {[%emt 00:04:57]} Kd8 {[%clk 00:18:42]} {[%emt 00:00:07]} 19.
Nxa6 {[%clk 00:36:20]} {[%emt 00:01:20]} Qf5+ {[%clk 00:10:27]} {[%emt
00:08:25]} 20. Ke1 {[%clk 00:30:40]} {[%emt 00:05:50]} Rb7 {[%clk 00:07:41]}
{[%emt 00:02:57]} 21. Qf8+ {[%clk 00:28:56]} {[%emt 00:01:53]} Be8 {[%clk
00:07:50]} {[%emt 00:00:01]} 22. Nc5 {[%emt 00:05:52]} Re7 {[%clk 00:03:09]} 23.
Bxb5 {[%clk 00:26:07]} {[%emt 00:02:08]} Qg5 {[%clk 00:03:05]} {[%emt
00:00:15]} 24. Rd1+ {[%clk 00:12:44]} {[%emt 00:13:33]} Kc7 {[%clk 00:03:13]}
{[%emt 00:00:02]} 25. Bxe8 {[%clk 00:11:39]} {[%emt 00:01:14]} Qxe3+ {[%clk
00:03:21]} {[%emt 00:00:02]} 26. Kf1 {[%clk 00:11:42]} {[%emt 00:00:07]} Qf4+
{[%clk 00:02:32]} {[%emt 00:00:59]} 27. Ke2 {[%clk 00:11:40]} {[%emt 00:00:13]}
Qc4+ {[%clk 00:02:16]} {[%emt 00:00:26]} 28. Nd3 {[%clk 00:10:46]} {[%emt
00:01:03]} e4 {[%clk 00:02:25]} {[%emt 00:00:02]} 29. Rc1 {[%clk 00:10:11]}
{[%emt 00:00:44]} exd3+ {[%clk 00:02:31]} {[%emt 00:00:04]} 30. Kf3 {[%clk
00:10:00]} {[%emt 00:00:21]} Qxc1 {[%clk 00:02:29]} {[%emt 00:00:12]} 31. Rxc1+
{[%clk 00:10:06]} {[%emt 00:00:04]} Kb6 {[%clk 00:02:10]} {[%emt 00:00:30]} 32.
Ba4 {[%clk 00:09:44]} {[%emt 00:00:32]} 1-0

[Event "Kwalificatie NJK A Groningen"]
[Site "Hoogkerk, Netherlands"]
[Date "2023.02.19"]
[Round "5.4"]
[White "Alvares, Thomas"]
[Black "Adams, Oscar"]
[Result "1-0"]
[TimeControl "55 min. + 10 sec./zet"]
[WhiteElo "1855"]
[BlackElo "1729"]

1. e4 {[%clk 00:55:17]} {[%emt 00:00:02]} c5 {[%clk 00:55:10]} {[%emt
00:00:10]} 2. Nf3 {[%clk 00:55:12]} {[%emt 00:00:16]} Nc6 {[%clk 00:55:15]}
{[%emt 00:00:06]} 3. d4 {[%clk 00:55:12]} {[%emt 00:00:09]} cxd4 {[%clk
00:55:22]} {[%emt 00:00:03]} 4. Nxd4 {[%clk 00:55:16]} {[%emt 00:00:06]} Nf6
{[%clk 00:55:05]} {[%emt 00:00:29]} 5. Nc3 {[%clk 00:55:18]} {[%emt 00:00:06]}
Qa5 {[%clk 00:53:04]} {[%emt 00:02:11]} 6. Nxc6 {[%clk 00:51:36]} {[%emt
00:03:52]} dxc6 {[%clk 00:52:56]} {[%emt 00:00:19]} 7. Bd3 {[%clk 00:50:33]}
{[%emt 00:01:12]} g6 {[%clk 00:51:50]} {[%emt 00:01:16]} 8. O-O {[%clk
00:49:39]} {[%emt 00:01:04]} Bg7 {[%clk 00:51:46]} {[%emt 00:00:14]} 9. Kh1
{[%clk 00:46:31]} {[%emt 00:03:18]} Be6 {[%clk 00:44:11]} {[%emt 00:07:45]} 10.
f4 {[%clk 00:44:31]} {[%emt 00:02:09]} O-O-O {[%clk 00:43:10]} {[%emt
00:01:11]} 11. Bd2 {[%clk 00:42:28]} {[%emt 00:02:14]} Qb6 {[%clk 00:39:35]}
{[%emt 00:03:45]} 12. Rb1 {[%clk 00:33:38]} {[%emt 00:09:00]} Ng4 {[%clk
00:37:24]} {[%emt 00:02:21]} 13. Qe2 {[%clk 00:33:08]} {[%emt 00:00:40]} h5
{[%clk 00:36:28]} {[%emt 00:01:06]} 14. b4 {[%clk 00:30:39]} {[%emt 00:02:38]}
Bd4 {[%clk 00:35:32]} {[%emt 00:01:07]} 15. Na4 {[%clk 00:28:50]} {[%emt
00:01:59]} Qc7 {[%clk 00:35:14]} {[%emt 00:00:28]} 16. Bc3 {[%clk 00:22:26]}
{[%emt 00:06:34]} Be3 {[%clk 00:32:27]} {[%emt 00:02:57]} 17. b5 {[%clk
00:14:09]} {[%emt 00:08:27]} cxb5 {[%clk 00:27:32]} {[%emt 00:05:06]} 18. Rxb5
{[%clk 00:13:08]} {[%emt 00:01:10]} Bd7 {[%clk 00:25:32]} {[%emt 00:02:10]} 19.
Rb4 {[%clk 00:11:51]} {[%emt 00:01:27]} f6 {[%clk 00:18:33]} {[%emt 00:07:08]}
20. Bd2 {[%clk 00:10:38]} {[%emt 00:01:22]} Bxd2 {[%clk 00:16:19]} {[%emt
00:02:25]} 21. Qxd2 {[%clk 00:10:46]} {[%emt 00:00:03]} g5 {[%clk 00:15:31]}
{[%emt 00:00:58]} 22. Nc5 {[%clk 00:06:37]} {[%emt 00:04:19]} Bf5 {[%clk
00:07:42]} {[%emt 00:07:58]} 23. Nxb7 {[%clk 00:04:11]} {[%emt 00:02:36]} Bxe4
{[%clk 00:07:31]} {[%emt 00:00:22]} 24. Rxe4 {[%clk 00:02:56]} {[%emt
00:01:24]} Kxb7 {[%clk 00:07:25]} {[%emt 00:00:16]} 25. Qb4+ {[%clk 00:02:15]}
{[%emt 00:00:52]} Qb6 {[%clk 00:07:17]} {[%emt 00:00:18]} 26. Qxe7+ {[%clk
00:01:05]} {[%emt 00:01:19]} Kb8 {[%clk 00:06:59]} {[%emt 00:00:28]} 27. Rb4
{[%clk 00:01:02]} {[%emt 00:00:14]} Rhe8 {[%clk 00:06:41]} {[%emt 00:00:28]} 28.
Rxb6+ {[%clk 00:01:02]} {[%emt 00:00:10]} axb6 {[%clk 00:06:50]} {[%emt
00:00:01]} 29. Qb4 {[%clk 00:00:42]} {[%emt 00:00:30]} Kc7 {[%clk 00:06:42]}
{[%emt 00:00:18]} 30. Rb1 {[%clk 00:00:25]} {[%emt 00:00:26]} Rd6 {[%clk
00:06:25]} {[%emt 00:00:27]} 31. Qc4+ {[%clk 00:00:23]} {[%emt 00:00:12]} Kd8
{[%clk 00:05:53]} {[%emt 00:00:43]} 32. h3 {[%clk 00:00:19]} {[%emt 00:00:13]}
Ne3 {[%clk 00:05:07]} {[%emt 00:00:56]} 33. Qc3 {[%clk 00:00:16]} {[%emt
00:00:13]} Nd5 {[%clk 00:05:01]} {[%emt 00:00:16]} 34. Qa3 {[%clk 00:00:18]}
{[%emt 00:00:08]} Rd7 {[%clk 00:04:59]} {[%emt 00:00:13]} 35. Bb5 {[%clk
00:00:16]} {[%emt 00:00:12]} Re3 {[%clk 00:03:49]} {[%emt 00:01:20]} 36. Qa8+
{[%clk 00:00:18]} {[%emt 00:00:07]} Ke7 {[%clk 00:03:31]} {[%emt 00:00:28]} 37.
Bxd7 {[%emt 00:00:24]} 1-0